Workbook

Sheet Sheet1
A1: 家湖公司2008年各部门费用支出表
A2: 时间 | B2: 总裁办 | C2: 行政部 | D2: 财务部 | E2: 销售部 | F2: 客服部 | G2: 总计 | H2: 各公司总计 | I2: 各二级分公司总计
A3: 一月 | B3: 16442 | C3: 8320 | D3: 4896 | E3: 7166 | F3: 5908 | G3: =B3+C3+D3+E3+F3 -> 42732 | H3: =G3+Sheet2!G3 -> 86509 | I3: =G3+[1]Sheet1!$G$3 -> 87109
A4: 二月 | B4: 8538 | C4: 18420 | D4: 18296 | E4: 1042 | F4: 16425 | G4: =B4+C4+D4+E4+F4 -> 62721 | H4: =G4+Sheet2!G4 -> 120616 | I4: =G4+[1]Sheet1!$G$3 -> 107098
A5: 三月 | B5: 2032 | C5: 10349 | D5: 10365 | E5: 7041 | F5: 16705 | G5: 46492 | H5: =G5+Sheet2!G5 -> 106811 | I5: =G5+[1]Sheet1!$G$3 -> 90869
A6: 四月 | B6: 5203 | C6: 6356 | D6: 7145 | E6: 10552 | F6: 5262 | G6: 34518 | H6: =G6+Sheet2!G6 -> 78214 | I6: =G6+[1]Sheet1!$G$3 -> 78895
A7: 五月 | B7: 14508 | C7: 19173 | D7: 19654 | E7: 3922 | F7: 9670 | G7: 66927 | H7: =G7+Sheet2!G7 -> 122481 | I7: =G7+[1]Sheet1!$G$3 -> 111304
A8: 六月 | B8: 9788 | C8: 12146 | D8: 19497 | E8: 13731 | F8: 4433 | G8: 59595 | H8: =G8+Sheet2!G8 -> 121168 | I8: =G8+[1]Sheet1!$G$3 -> 103972
A9: 七月 | B9: 6985 | C9: 12991 | D9: 9815 | E9: 12332 | F9: 10467 | G9: 52590 | H9: =G9+Sheet2!G9 -> 104261 | I9: =G9+[1]Sheet1!$G$3 -> 96967
A10: 八月 | B10: 12695 | C10: 14670 | D10: 10900 | E10: 16472 | F10: 13021 | G10: 67758 | H10: =G10+Sheet2!G10 -> 130623 | I10: =G10+[1]Sheet1!$G$3 -> 112135
A11: 九月 | B11: 17476 | C11: 6903 | D11: 13103 | E11: 19214 | F11: 8181 | G11: 64877 | H11: =G11+Sheet2!G11 -> 129316 | I11: =G11+[1]Sheet1!$G$3 -> 109254
A12: 十月 | B12: 7960 | C12: 14549 | D12: 15554 | E12: 1456 | F12: 17880 | G12: 57399 | H12: =G12+Sheet2!G12 -> 104885 | I12: =G12+[1]Sheet1!$G$3 -> 101776
A13: 十一月 | B13: 4004 | C13: 4420 | D13: 4955 | E13: 19814 | F13: 18884 | G13: 52077 | H13: =G13+Sheet2!G13 -> 99227 | I13: =G13+[1]Sheet1!$G$3 -> 96454
A14: 十二月 | B14: 9395 | C14: 15741 | D14: 16998 | E14: 56214 | F14: 11857 | G14: 110205 | H14: =G14+Sheet2!G14 -> 169233 | I14: =G14+[1]Sheet1!$G$3 -> 154582

Sheet Sheet2
A1: 家湖公司(河南分公司)2008年各部门费用支出表
A2: 时间 | B2: 总裁办 | C2: 行政部 | D2: 财务部 | E2: 销售部 | F2: 客服部 | G2: 总计
A3: 一月 | B3: 3144 | C3: 11797 | D3: 8946 | E3: 12348 | F3: 7542 | G3: =B3+C3+D3+E3+F3 -> 43777
A4: 二月 | B4: 16234 | C4: 5012 | D4: 7391 | E4: 13814 | F4: 15444 | G4: =B4+C4+D4+E4+F4 -> 57895
A5: 三月 | B5: 14266 | C5: 16383 | D5: 3142 | E5: 9038 | F5: 17490 | G5: 60319
A6: 四月 | B6: 17723 | C6: 6422 | D6: 6618 | E6: 3490 | F6: 9443 | G6: 43696
A7: 五月 | B7: 4373 | C7: 10990 | D7: 16016 | E7: 13200 | F7: 10975 | G7: 55554
A8: 六月 | B8: 12988 | C8: 11005 | D8: 15262 | E8: 10392 | F8: 11926 | G8: 61573
A9: 七月 | B9: 5810 | C9: 10971 | D9: 13249 | E9: 13000 | F9: 8641 | G9: 51671
A10: 八月 | B10: 6656 | C10: 6507 | D10: 13624 | E10: 16909 | F10: 19169 | G10: 62865
A11: 九月 | B11: 10788 | C11: 15632 | D11: 7417 | E11: 12660 | F11: 17942 | G11: 64439
A12: 十月 | B12: 3206 | C12: 8206 | D12: 15036 | E12: 3426 | F12: 17612 | G12: 47486
A13: 十一月 | B13: 6095 | C13: 14849 | D13: 7934 | E13: 7649 | F13: 10623 | G13: 47150
A14: 十二月 | B14: 9166 | C14: 8815 | D14: 9182 | E14: 19065 | F14: 12800 | G14: 59028

Sheet Sheet3
